fUST/lending_fUST_20250925
["ID","MTS","AMOUNT","RATE_DAILY","PERIOD"]
[387596394,1758780638581,-1500.0,0.00020468,2]
[387596396,1758780638591,-500.0,0.00020473,2]
[387596398,1758780638601,-500.98143617,0.00020473,2]
[387596400,1758780638610,-501.69416085,0.00020473,2]
[387596401,1758780638619,-500.0,0.00020473,2]
[387596402,1758780638629,-1004.83976007,0.00020521,2]
[387596403,1758780638638,-504.67218833,0.00020521,2]
[387596404,1758780638646,-480.0,0.000207,2]
[387596405,1758780638655,-488.52,0.00020702,2]
[387596406,1758780638664,-480.0,0.00020702,2]
[387596407,1758780638673,-480.0,0.00020702,2]
[387596408,1758780638684,-480.0,0.00020702,2]
[387596409,1758780638693,-397.17835169,0.00020702,2]
[387596410,1758780638702,-480.0,0.00020702,2]
[387596411,1758780638711,-480.0,0.00020702,2]
[387596412,1758780638721,-504.62,0.00020702,2]
[387596413,1758780638730,-480.0,0.00020702,2]
[387596414,1758780638739,-480.0,0.00020703,2]
[387596415,1758780638748,-480.0,0.00020703,2]
[387596416,1758780638757,-480.0,0.00020703,2]
[387596417,1758780638766,-397.64451597,0.00020703,2]
[387596418,1758780638775,-480.0,0.00020703,2]
[387596419,1758780638785,-480.0,0.00020703,2]
[387596420,1758780638795,-480.0,0.00020703,2]
[387596421,1758780638804,-480.0,0.00020703,2]
[387596422,1758780638814,-480.0,0.00020703,2]
[387596423,1758780638823,-480.0,0.00020704,2]
[387596424,1758780638834,-480.0,0.00020704,2]
[387596425,1758780638843,-480.0,0.00020704,2]
[387596426,1758780638852,-480.0,0.00020706,2]
[387596427,1758780638862,-522.88,0.00020706,2]
[387596428,1758780638871,-480.0,0.00020706,2]
[387596429,1758780638881,-480.0,0.00020707,2]
[387596430,1758780638890,-480.0,0.00020707,2]
[387596431,1758780638901,-480.0,0.00020707,2]
[387596432,1758780638910,-480.0,0.00020707,2]
[387596433,1758780638919,-480.0,0.00020707,2]
[387596434,1758780638929,-480.0,0.00020707,2]
[387596435,1758780638938,-480.0,0.00020707,2]
[387596436,1758780638947,-2427.37,0.00020707,2]
[387596437,1758780638958,-480.0,0.00020707,2]
[387596438,1758780638970,-1282.95,0.00020707,2]
[387596439,1758780638979,-480.0,0.00020707,2]
[387596440,1758780638989,-150.42966953,0.00020708,2]
[387596441,1758780638998,-480.0,0.00020708,2]
[387596442,1758780639008,-418.60072527,0.00020721,2]
[387596443,1758780639017,-480.0,0.00020721,2]
[387596444,1758780639026,-160.0,0.00020739,2]
[387596445,1758780639035,-813.04989174,0.0002083,2]
[387596446,1758780639045,-1500.0,0.00020968,2]
[387596447,1758780639054,-1500.0,0.00020968,2]
[387596448,1758780639063,-678.55621229,0.00020968,2]
[387596449,1758780639073,-1500.0,0.00020968,2]
[387596450,1758780639082,-1510.40379554,0.00020968,2]
[387596451,1758780639091,-1500.0,0.00020968,2]
[387596452,1758780639100,-545.03033089,0.00020968,2]
[387596453,1758780639110,-774.76573895,0.00020972,2]
[387596454,1758780639119,-480.0,0.00020974,2]
[387596455,1758780639128,-488.52,0.00020976,2]
[387596456,1758780639138,-480.0,0.00020976,2]
[387596457,1758780639147,-480.0,0.00020976,2]
[387596458,1758780639157,-480.0,0.00020976,2]
[387596459,1758780639166,-480.0,0.00020976,2]
[387596460,1758780639175,-480.0,0.00020976,2]
[387596461,1758780639187,-504.62,0.00020976,2]
[387596462,1758780639197,-480.0,0.00020976,2]
[387596463,1758780639206,-400.52276005,0.00020977,2]
[387596464,1758780639215,-480.0,0.00020977,2]
[387596465,1758780639225,-480.0,0.00020977,2]
[387596466,1758780639234,-480.0,0.00020977,2]
[387596467,1758780639243,-480.0,0.00020977,2]
[387596468,1758780639253,-480.0,0.00020977,2]
[387596469,1758780639262,-480.0,0.00020977,2]
[387596470,1758780639271,-480.0,0.00020977,2]
[387596471,1758780639281,-480.0,0.00020978,2]
[387596472,1758780639291,-480.0,0.00020978,2]
[387596473,1758780639299,-480.0,0.0002098,2]
[387596474,1758780639309,-522.88,0.0002098,2]
[387596475,1758780639318,-480.0,0.0002098,2]
[387596476,1758780639327,-480.0,0.00020981,2]
[387596477,1758780639336,-480.0,0.00020981,2]
[387596478,1758780639345,-303.55273222,0.00020981,2]
[387596479,1758780639354,-480.0,0.00020981,2]
[387596480,1758780639363,-480.0,0.00020981,2]
[387596481,1758780639372,-480.0,0.00020981,2]
[387596482,1758780639382,-480.0,0.00020981,2]
[387596483,1758780639391,-2427.37,0.00020981,2]
[387596484,1758780639400,-480.0,0.00020981,2]
[387596485,1758780639409,-1282.95,0.00020981,2]
[387596486,1758780639418,-480.0,0.00020981,2]
[387596487,1758780639429,-480.0,0.00020982,2]
[387596488,1758780639438,-480.0,0.00020995,2]
[387596489,1758780639447,-2000.0,0.00021016,2]
[387596490,1758780639456,-583.86256585,0.00021016,2]
[387596491,1758780639465,-2000.0,0.00021016,2]
[387596492,1758780639475,-2000.0,0.00021016,2]
[387596493,1758780639484,-1000.0,0.00021021,2]
[387596494,1758780639589,-250.3,0.00021043,2]
[387596495,1758780639599,-480.0,0.00021248,2]
[387596496,1758780639609,-488.52,0.0002125,2]
[387596497,1758780639618,-480.0,0.0002125,2]
[387596498,1758780639627,-480.0,0.0002125,2]
[387596499,1758780639636,-480.0,0.0002125,2]
[387596500,1758780639645,-504.62,0.0002125,2]
[387596501,1758780639654,-480.0,0.00021251,2]
[387596502,1758780639664,-480.0,0.00021251,2]
[387596503,1758780639673,-480.0,0.00021251,2]
[387596504,1758780639684,-613.89105678,0.00021251,2]
[387596505,1758780639700,-480.0,0.00021251,2]
[387596506,1758780639710,-480.0,0.00021251,2]
[387596507,1758780639719,-480.0,0.00021251,2]
[387596508,1758780639728,-480.0,0.00021252,2]
[387596509,1758780639737,-583.10476794,0.00021252,2]
[387596510,1758780639746,-480.0,0.00021254,2]
[387596511,1758780639756,-522.88,0.00021254,2]
[387596512,1758780639765,-480.0,0.00021255,2]
[387596513,1758780639774,-480.0,0.00021255,2]
[387596514,1758780639783,-480.0,0.00021255,2]
[387596515,1758780639792,-480.0,0.00021255,2]
[387596516,1758780639801,-366.07272362,0.00021255,2]
[387596517,1758780639810,-480.0,0.00021255,2]
[387596518,1758780639820,-2427.37,0.00021255,2]
[387596519,1758780639829,-480.0,0.00021255,2]
[387596520,1758780639838,-1282.95,0.00021255,2]
[387596521,1758780639847,-480.0,0.00021255,2]
[387596522,1758780639857,-480.0,0.00021256,2]
[387596523,1758780639866,-480.0,0.00021269,2]
[387596524,1758780639876,-260.0,0.00021287,2]
[387596525,1758780639885,-502.01785286,0.00021322,2]
[387596526,1758780639894,-501.7140521,0.00021322,2]
[387596527,1758780639903,-504.3947377,0.00021322,2]
[387596528,1758780639912,-501.9394804,0.00021516,2]
[387596529,1758780639921,-500.0,0.00021516,2]
[387596530,1758780639930,-521.83973664,0.00021516,2]
[387596532,1758780639939,-480.0,0.00021522,2]
[387596533,1758780639948,-488.52,0.00021524,2]
[387596535,1758780639959,-480.0,0.00021524,2]
[387596537,1758780639971,-505.17,0.00021524,2]
[387596540,1758780639980,-480.0,0.00021524,2]
[387596543,1758780639989,-504.62,0.00021524,2]
[387596545,1758780639998,-480.0,0.00021525,2]
[387596548,1758780640009,-480.0,0.00021525,2]
[387596550,1758780640019,-480.0,0.00021525,2]
[387596552,1758780640029,-480.0,0.00021525,2]
[387596554,1758780640040,-480.0,0.00021525,2]
[387596556,1758780640050,-480.0,0.00021526,2]
[387596558,1758780640059,-480.0,0.00021528,2]
[387596562,1758780640069,-522.88,0.00021528,2]
[387596564,1758780640079,-480.0,0.00021529,2]
[387596566,1758780640089,-480.0,0.00021529,2]
[387596568,1758780640098,-480.0,0.00021529,2]
[387596570,1758780640107,-480.0,0.00021529,2]
[387596572,1758780640117,-480.0,0.00021529,2]
[387596574,1758780640126,-2427.37,0.00021529,2]
[387596576,1758780640136,-480.0,0.00021529,2]
[387596578,1758780640145,-1282.95,0.00021529,2]
[387596580,1758780640154,-480.0,0.00021529,2]
[387596582,1758780640163,-480.0,0.0002153,2]
[387596584,1758780640173,-168.63354543,0.00021551,2]
[387596586,1758780640187,-204.11219832,0.00021564,2]
[387596588,1758780640196,-1000.0,0.00021564,2]
[387596590,1758780640206,-1043.74098733,0.00021564,2]
[387596592,1758780640215,-348.64461143,0.00021568,2]
[387596594,1758780640225,-501.7698393,0.00021585,2]
[387596596,1758780640234,-500.0,0.00021585,2]
[387596598,1758780640244,-238.57457338,0.00021585,2]
[387596600,1758780640253,-500.0,0.00021585,2]
[387596602,1758780640263,-501.04154619,0.00021585,2]
[387596604,1758780640273,-500.0,0.00021585,2]
[387596606,1758780640283,-406.79269329,0.00021585,2]
[387596608,1758780640292,-500.0,0.00021585,2]
[387596611,1758780640302,-500.0,0.00021585,2]
[387596613,1758780640312,-500.0,0.00021585,2]
[387596614,1758780640321,-500.0,0.00021585,2]
[387596615,1758780640330,-425.3072389,0.00021597,2]
[387596617,1758780640339,-504.46953015,0.00021663,2]
[387596619,1758780640349,-500.0,0.00021663,2]
[387596621,1758780640359,-500.0,0.00021663,2]
[387596624,1758780640368,-160.0,0.00021787,2]
[387596626,1758780640378,-233.66602051,0.00021787,2]
[387596628,1758780640387,-160.0,0.00021787,2]
[387596630,1758780640397,-160.0,0.00021787,2]
[387596632,1758780640406,-480.0,0.00021796,2]
[387596634,1758780640415,-488.52,0.00021798,2]
[387596636,1758780640425,-480.0,0.00021798,2]
[387596638,1758780640437,-480.0,0.00021798,2]
[387596640,1758780640447,-504.62,0.00021798,2]
[387596642,1758780640457,-417.15472785,0.00021799,2]
[387596644,1758780640466,-480.0,0.00021799,2]
[387596646,1758780640475,-480.0,0.00021799,2]
[387596648,1758780640485,-480.0,0.00021799,2]
[387596649,1758780640495,-480.0,0.00021799,2]
[387596650,1758780640505,-480.0,0.00021799,2]
[387596651,1758780640515,-480.0,0.000218,2]
[387596652,1758780640524,-480.0,0.00021802,2]
[387596653,1758780640534,-522.88,0.00021802,2]
[387596654,1758780640543,-480.0,0.00021803,2]
[387596655,1758780640553,-428.97,0.00021803,2]
[387596656,1758780640562,-480.0,0.00021803,2]
[387596657,1758780640571,-480.0,0.00021803,2]
[387596658,1758780640581,-480.0,0.00021803,2]
[387596659,1758780640590,-2427.37,0.00021803,2]
[387596660,1758780640601,-480.0,0.00021803,2]
[387596661,1758780640611,-1282.95,0.00021803,2]
[387596662,1758780640621,-480.0,0.00021803,2]
[387596663,1758780640631,-480.0,0.00021804,2]
[387596664,1758780640640,-520.0,0.00021835,2]
[387596665,1758780640649,-513.44879029,0.00021917,2]
[387596666,1758780640658,-774.76573895,0.00022044,2]
[387596667,1758780640669,-480.0,0.0002207,2]
[387596668,1758780640680,-488.52,0.00022072,2]
[387596669,1758780640690,-480.0,0.00022072,2]
[387596670,1758780640699,-480.0,0.00022072,2]
[387596671,1758780640709,-504.62,0.00022072,2]
[387596672,1758780640719,-480.0,0.00022073,2]
[387596673,1758780640729,-480.0,0.00022073,2]
[387596674,1758780640738,-454.51955245,0.00022073,2]
[387596675,1758780640747,-480.0,0.00022073,2]
[387596676,1758780640757,-480.0,0.00022073,2]
[387596677,1758780640766,-199.85000003,0.00022074,2]
[387596678,1758780640776,-480.0,0.00022076,2]
[387596679,1758780640786,-522.88,0.00022076,2]
[387596680,1758780640796,-480.0,0.00022077,2]
[387596681,1758780640805,-480.0,0.00022077,2]
[387596682,1758780640816,-480.0,0.00022077,2]
[387596683,1758780640826,-480.0,0.00022077,2]
[387596684,1758780640835,-2427.37,0.00022077,2]
[387596685,1758780640845,-480.0,0.00022077,2]
[387596686,1758780640855,-1282.95,0.00022077,2]
[387596687,1758780640864,-406.66,0.00022077,2]
[387596688,1758780640873,-151.0,0.00022078,7]
[387596689,1758780640883,-151.0,0.00022078,7]
[387596690,1758780640893,-186.82,0.00022078,2]
[387596691,1758780640902,-1642.55,0.000221,2]
[387596692,1758780640911,-1004.91921847,0.00022133,2]
[387596693,1758780640921,-813.04989174,0.00022154,2]
[387596694,1758780640931,-507.45578238,0.00022211,2]
[387596695,1758780640941,-480.0,0.00022344,2]
[387596696,1758780640950,-488.52,0.00022346,2]
[387596697,1758780640962,-480.0,0.00022346,2]
[387596698,1758780640972,-480.0,0.00022346,2]
[387596699,1758780640981,-504.62,0.00022346,2]
[387596700,1758780640991,-480.0,0.00022347,2]
[387596701,1758780641000,-480.0,0.00022347,2]
[387596702,1758780641009,-480.0,0.00022347,2]
[387596703,1758780641019,-480.0,0.0002235,2]
[387596704,1758780641028,-522.88,0.0002235,2]
[387596705,1758780641038,-480.0,0.00022351,2]
[387596706,1758780641048,-480.0,0.00022351,2]
[387596707,1758780641057,-2427.37,0.00022351,2]
[387596708,1758780641067,-167.318059,0.00022351,7]
[387596709,1758780641077,-480.0,0.00022351,2]
[387596710,1758780641086,-1282.95,0.00022351,2]
[387596711,1758780641097,-488.52,0.0002262,2]
[387596712,1758780641106,-480.0,0.0002262,2]
[387596713,1758780641115,-480.0,0.0002262,2]
[387596714,1758780641125,-504.62,0.0002262,2]
[387596715,1758780641135,-480.0,0.00022621,2]
[387596716,1758780641144,-480.0,0.00022621,2]
[387596717,1758780641154,-480.0,0.00022621,2]
[387596718,1758780641163,-530.55,0.00022624,2]
[387596719,1758780641173,-522.88,0.00022624,2]
[387596720,1758780641184,-480.0,0.00022625,2]
[387596721,1758780641194,-480.0,0.00022625,2]
[387596722,1758780641203,-2427.37,0.00022625,2]
[387596723,1758780641213,-480.0,0.00022625,2]
[387596725,1758780641222,-1282.95,0.00022625,2]
[387596727,1758780641233,-488.52,0.00022894,2]
[387596729,1758780641243,-480.0,0.00022894,2]
[387596730,1758780641252,-339.2,0.00022894,2]
[387596732,1758780641261,-504.62,0.00022894,2]
[387596734,1758780641271,-151.0,0.00022895,7]
[387596736,1758780641280,-480.0,0.00022895,2]
[387596738,1758780641289,-480.0,0.00022895,2]
[387596740,1758780641299,-507.49916118,0.00022895,2]
[387596742,1758780641308,-522.88,0.00022898,2]
[387596744,1758780641317,-480.0,0.00022899,2]
[387596746,1758780641327,-2427.37,0.00022899,2]
[387596748,1758780641336,-480.0,0.00022899,2]
[387596750,1758780641345,-1282.95,0.00022899,2]
[387596752,1758780641354,-500.6,0.00022956,2]
[387596754,1758780641364,-271.72458938,0.0002299,2]
[387596756,1758780641373,-271.72458938,0.0002299,2]
[387596758,1758780641383,-271.72458938,0.0002299,2]
[387596760,1758780641392,-500.0,0.00023001,2]
[387596762,1758780641402,-774.76573895,0.00023116,2]
[387596764,1758780641411,-271.72458938,0.00023128,2]
[387596766,1758780641420,-271.72458938,0.00023128,2]
[387596768,1758780641431,-488.52,0.00023168,2]
[387596770,1758780641440,-480.0,0.00023168,2]
[387596772,1758780641450,-504.62,0.00023168,2]
[387596774,1758780641459,-480.0,0.00023169,2]
[387596776,1758780641469,-480.0,0.00023169,2]
[387596778,1758780641478,-522.88,0.00023172,2]
[387596780,1758780641488,-543.83,0.00023173,2]
[387596782,1758780641497,-2427.37,0.00023173,2]
[387596784,1758780641506,-480.0,0.00023173,2]
[387596786,1758780641515,-1282.95,0.00023173,2]
[387596788,1758780641525,-271.72458938,0.00023267,2]
[387596790,1758780641534,-271.72458938,0.00023267,2]
[387596792,1758780641543,-271.72458938,0.00023267,2]
[387596794,1758780641552,-271.72458938,0.00023267,2]
[387596796,1758780641562,-151.0,0.00023267,7]
[387596798,1758780641571,-151.0,0.00023267,7]
[387596800,1758780641580,-871.27,0.00023287,2]
[387596802,1758780641589,-150.0,0.000234,2]
[387596804,1758780641599,-271.72458938,0.00023405,7]
[387596806,1758780641607,-271.72458938,0.00023405,7]
[387596808,1758780641617,-488.52,0.00023442,2]
[387596810,1758780641627,-385.26074063,0.00023442,2]
[387596812,1758780641636,-504.62,0.00023442,2]
[387596814,1758780641646,-480.0,0.00023443,2]
[387596816,1758780641656,-480.0,0.00023443,2]
[387596818,1758780641666,-522.88,0.00023446,2]
[387596820,1758780641675,-2427.37,0.00023447,2]
[387596822,1758780641684,-311.43916854,0.00023447,2]
[387596824,1758780641694,-1282.95,0.00023447,2]
[387596826,1758780641703,-505.52315147,0.00023467,2]
[387596828,1758780641712,-813.04989174,0.00023477,2]
[387596830,1758780641722,-271.72458938,0.00023543,7]
[387596832,1758780641731,-271.72458938,0.00023543,7]
[387596834,1758780641740,-179.65864857,0.00023637,2]
[387596836,1758780641750,-500.0,0.00023658,2]
[387596838,1758780641759,-271.72458938,0.00023681,7]
[387596840,1758780641768,-488.52,0.00023716,2]
[387596842,1758780641777,-504.62,0.00023716,2]
[387596844,1758780641787,-480.0,0.00023717,2]
[387596846,1758780641796,-480.0,0.00023717,2]
[387596848,1758780641805,-522.88,0.0002372,2]
[387596850,1758780641815,-2427.37,0.00023721,2]
[387596852,1758780641824,-1282.95,0.00023721,2]
[387596853,1758780641833,-978.0,0.00023933,2]
[387596854,1758780641843,-635.0,0.00023933,2]
[387596855,1758780641852,-2160.0,0.00023933,2]
[387596856,1758780641863,-417.975,0.00023933,2]
[387596857,1758780641872,-488.52,0.0002399,2]
[387596858,1758780641882,-504.62,0.0002399,2]
[387596859,1758780641891,-480.0,0.00023991,2]
[387596860,1758780641901,-480.0,0.00023991,2]
[387596861,1758780641911,-522.88,0.00023994,2]
[387596862,1758780641921,-2427.37,0.00023995,2]
[387596863,1758780641931,-1282.95,0.00023995,2]
[387596864,1758780641940,-622.285,0.00024078,5]
[387596866,1758780641951,-517.70829805,0.00024104,2]
[387596867,1758780641964,-1000.0,0.0002415,2]
[387596868,1758780641973,-1000.0,0.0002415,2]
[387596870,1758780641983,-1044.82418463,0.0002415,2]
[387596872,1758780641992,-166.28049624,0.0002415,2]
[387596874,1758780642002,-151.0,0.0002415,2]
[387596876,1758780642012,-151.0,0.0002415,2]
[387596878,1758780642022,-151.0,0.0002415,2]
[387596880,1758780642032,-200.4500569,0.0002415,2]
[387596882,1758780642041,-350.0,0.0002415,2]
[387596884,1758780642050,-151.0,0.0002415,2]
[387596886,1758780642060,-350.0,0.0002415,2]
[387596888,1758780642069,-500.0,0.0002415,2]
[387596890,1758780642079,-153.11569432,0.0002415,2]
[387596892,1758780642088,-500.0,0.0002415,2]
[387596894,1758780642097,-350.0,0.0002415,2]
[387596896,1758780642107,-384.77737366,0.0002415,2]
[387596898,1758780642117,-350.0,0.0002415,2]
[387596900,1758780642126,-350.0,0.0002415,2]
[387596902,1758780642135,-350.0,0.0002415,2]
[387596904,1758780642144,-350.0,0.0002415,2]
[387596906,1758780642154,-350.0,0.0002415,2]
[387596908,1758780642164,-350.0,0.0002415,2]
[387596910,1758780642174,-350.0,0.0002415,2]
[387596912,1758780642184,-350.0,0.0002415,2]
[387596914,1758780642194,-460.33648398,0.0002415,2]
[387596916,1758780642204,-774.76573895,0.00024187,2]
[387596918,1758780642213,-488.52,0.00024264,2]
[387596920,1758780642222,-504.62,0.00024264,2]
[387596932,1758780642323,-480.0,0.00024265,2]
[387596934,1758780642334,-480.0,0.00024265,2]
[387596936,1758780642343,-522.88,0.00024268,2]
[387596938,1758780642353,-2427.37,0.00024269,2]
[387596941,1758780642363,-1282.95,0.00024269,2]
[387596943,1758780642372,-488.52,0.00024538,2]
[387596945,1758780642381,-504.62,0.00024538,2]
[387596946,1758780642390,-621.30699316,0.00024539,2]
[387596948,1758780642400,-480.0,0.00024539,2]
[387596951,1758780642409,-522.88,0.00024542,2]
[387596953,1758780642419,-2427.37,0.00024543,2]
[387596955,1758780642428,-1282.95,0.00024543,2]
[387596956,1758780642438,-150.0,0.000248,10]
[387596958,1758780642448,-4966.17620472,0.000248,2]
[387596960,1758780642458,-813.04989174,0.000248,2]
[387596962,1758780642467,-488.52,0.00024812,2]
[387596964,1758780642476,-504.62,0.00024812,2]
[387596966,1758780642486,-480.0,0.00024813,2]
[387596968,1758780642496,-522.88,0.00024816,2]
[387596970,1758780642505,-2427.37,0.00024817,2]
[387596973,1758780642514,-153.124884,0.00024817,7]
[387596975,1758780642524,-151.0,0.00024817,7]
[387596977,1758780642533,-151.0,0.00024817,7]
[387596979,1758780642543,-151.0,0.00024817,7]
[387596981,1758780642553,-151.0,0.00024817,7]
[387596983,1758780642562,-151.0,0.00024817,7]
[387596985,1758780642572,-151.0,0.00024817,7]
[387596987,1758780642581,-151.0,0.00024817,7]
[387596989,1758780642591,-168.064358,0.00024817,7]
[387596991,1758780642600,-168.064358,0.00024817,7]
[387596993,1758780642609,-152.333578,0.00024817,7]
[387596995,1758780642618,-168.064358,0.00024817,7]
[387596997,1758780642628,-151.0,0.00024817,7]
[387596999,1758780642638,-168.064358,0.00024817,7]
[387597001,1758780642647,-151.0,0.00024817,7]
[387597003,1758780642657,-1282.95,0.00024817,2]
[387597005,1758780642667,-151.0,0.00024817,7]
[387597007,1758780642676,-151.0,0.00024817,7]
[387597009,1758780642686,-151.0,0.00024817,7]
[387597011,1758780642696,-151.0,0.00024817,7]
[387597013,1758780642705,-151.0,0.00024817,7]
[387597015,1758780642714,-151.0,0.00024817,7]
[387597017,1758780642724,-151.0,0.00024817,7]
[387597019,1758780642734,-151.0,0.00024817,7]
[387597021,1758780642743,-151.0,0.00024817,7]
[387597023,1758780642753,-5000.0,0.0002486,2]
[387597025,1758780642762,-750.9,0.00024869,2]
[387597027,1758780642772,-506.92875789,0.00024873,2]
[387597030,1758780642782,-413.84801706,0.0002489,2]
[387597032,1758780642792,-200.88282832,0.00024899,2]
[387597034,1758780642802,-164.502952,0.000249,7]
[387597036,1758780642811,-164.502952,0.000249,7]
[387597038,1758780642821,-164.502952,0.000249,7]
[387597040,1758780642830,-164.502952,0.000249,7]
[387597042,1758780642839,-153.013734,0.000249,7]
[387597044,1758780642848,-151.0,0.000249,7]
[387597046,1758780642858,-151.0,0.000249,7]
[387597048,1758780642867,-160.574391,0.000249,7]
[387597050,1758780642876,-151.0,0.000249,7]
[387597052,1758780642887,-151.0,0.000249,7]
[387597054,1758780642897,-151.0,0.000249,7]
[387597056,1758780642907,-501389.802508,0.000249,2]
[387597058,1758780642916,-731.02907576,0.000249,2]
[387597060,1758780642925,-198.27542,0.000249,7]
[387597062,1758780642935,-151.0,0.000249,7]
[387597064,1758780642945,-151.0,0.000249,7]
[387597066,1758780642958,-151.0,0.000249,7]
[387597068,1758780642970,-151.0,0.000249,7]
[387597071,1758780642979,-151.0,0.000249,7]
[387597073,1758780642988,-168.064358,0.000249,7]
[387597076,1758780642998,-168.064358,0.000249,7]
[387597079,1758780643007,-168.064358,0.000249,7]
[387597082,1758780643021,-151.0,0.000249,7]
[387597084,1758780643031,-168.064358,0.000249,7]
[387597087,1758780643040,-151.0,0.000249,7]
[387597090,1758780643049,-151.0,0.000249,7]
[387597093,1758780643059,-151.0,0.000249,7]
[387597096,1758780643068,-151.0,0.000249,7]
[387597099,1758780643078,-151.0,0.000249,7]
[387597102,1758780643087,-151.0,0.000249,7]
[387597105,1758780643097,-151.0,0.000249,7]
[387597108,1758780643108,-151.0,0.000249,7]
[387597111,1758780643117,-151.0,0.000249,7]
[387597114,1758780643127,-151.0,0.000249,7]
[387597116,1758780643136,-168.0,0.00024925,2]
[387597118,1758780643146,-488.52,0.00025086,2]
[387597120,1758780643155,-504.62,0.00025086,2]
[387597122,1758780643165,-480.0,0.00025087,2]
[387597124,1758780643174,-522.88,0.0002509,2]
[387597126,1758780643184,-2427.37,0.00025091,2]
[387597128,1758780643193,-1282.95,0.00025091,2]
[387597130,1758780643202,-168.0,0.00025114,2]
[387597132,1758780643212,-871.27,0.00025205,4]
[387597134,1758780643221,-151.0,0.00025206,2]
[387597136,1758780643230,-151.0,0.00025206,2]
[387597138,1758780643239,-151.89653285,0.00025206,2]
[387597140,1758780643248,-173.32683059,0.00025206,2]
[387597142,1758780643257,-151.0,0.00025206,2]
[387597144,1758780643266,-151.94898114,0.00025206,2]
[387597146,1758780643276,-199.3206496,0.00025206,2]
[387597148,1758780643285,-500.0,0.00025206,2]
[387597150,1758780643294,-301.78350024,0.00025206,2]
[387597152,1758780643303,-153.52042676,0.00025206,2]
[387597154,1758780643312,-151.0,0.00025206,2]
[387597156,1758780643322,-151.95306677,0.00025206,2]
[387597158,1758780643332,-151.0,0.00025206,2]
[387597160,1758780643341,-151.0,0.00025206,2]
[387597162,1758780643350,-151.0,0.00025206,2]
[387597164,1758780643360,-774.76573895,0.00025259,3]
[387597166,1758780643369,-529.6283135,0.00025282,2]
[387597168,1758780643378,-2116.39474076,0.00025282,2]
[387597170,1758780643387,-952.57424777,0.00025282,2]
[387597172,1758780643396,-3806.48669407,0.00025282,2]
[387597174,1758780643406,-488.52,0.0002536,2]
[387597176,1758780643415,-504.62,0.0002536,2]
[387597178,1758780643424,-260.44,0.00025361,2]
[387597180,1758780643434,-522.88,0.00025364,2]
[387597182,1758780643443,-2427.37,0.00025365,2]
[387597184,1758780643453,-1282.95,0.00025365,2]
[387597186,1758780643462,-177.66392099,0.0002537,30]
[387597188,1758780643471,-168.0,0.00025386,2]
[387597191,1758780643484,-490.36420006,0.00025466,2]
[387597193,1758780643494,-151.0,0.0002548,2]
[387597195,1758780643503,-151.0,0.0002548,2]
[387597197,1758780643512,-247.43859374,0.0002548,2]
[387597199,1758780643522,-500.0,0.0002548,2]
[387597201,1758780643532,-154.67959179,0.0002548,2]
[387597203,1758780643542,-151.0,0.0002548,2]